fUSD/lending_fUSD_20250514
["ID","MTS","AMOUNT","RATE_DAILY","PERIOD"]
[361023836,1747209039293,-400.0,0.00010958,2]
[361023839,1747209039303,-400.0,0.00010958,2]
[361023841,1747209039313,-400.0,0.00010958,2]
[361023843,1747209039322,-1055.84,0.00010958,2]
[361023844,1747209039334,-400.0,0.00010958,2]
[361023846,1747209039343,-1569.68,0.00010958,2]
[361023848,1747209039353,-3342.19,0.00010958,2]
[361023850,1747209039362,-1011.98,0.00010958,2]
[361023852,1747209039371,-400.0,0.00010958,2]
[361023854,1747209039382,-437.7,0.00010958,2]
[361023856,1747209039390,-841.38,0.00010958,2]
[361023858,1747209039400,-400.0,0.00010958,2]
[361023860,1747209039410,-2138.29,0.00010958,2]
[361023862,1747209039420,-799.14,0.00010958,2]
[361023864,1747209039430,-931.09,0.00010958,2]
[361023866,1747209039439,-400.0,0.00010958,2]
[361023868,1747209039449,-400.0,0.00010958,2]
[361023870,1747209039458,-430.71124403,0.00010958,2]
[361023872,1747209039468,-400.03,0.00010958,2]
[361023874,1747209039478,-358.0,0.00010958,2]
[361023876,1747209039488,-400.0,0.00010958,2]
[361023878,1747209039498,-561.99,0.00010958,2]
[361023880,1747209039507,-447.86,0.00010958,2]
[361023882,1747209039517,-400.0,0.00010958,2]
[361023884,1747209039526,-1506.45,0.00010958,2]
[361023886,1747209039536,-1248.25,0.00010958,2]
[361023888,1747209039545,-466.29,0.00010958,2]
[361023890,1747209039555,-400.0,0.00010958,2]
[361023892,1747209039564,-500.31,0.00010958,2]
[361023894,1747209039575,-400.0,0.00010958,2]
[361023896,1747209039584,-400.0,0.00010958,2]
[361023898,1747209039594,-559.56,0.00010958,2]
[361023900,1747209039604,-400.0,0.00010958,2]
[361023902,1747209039613,-400.0,0.00010958,2]
[361023904,1747209039623,-499.83,0.00010958,2]
[361023906,1747209039632,-400.0,0.00010958,2]
[361023908,1747209039641,-400.0,0.00010958,2]
[361023910,1747209039651,-400.0,0.00010958,2]
[361023912,1747209039660,-648.49,0.00010958,2]
[361023914,1747209039670,-400.0,0.00010958,2]
[361023916,1747209039680,-400.0,0.00010958,2]
[361023918,1747209039689,-400.0,0.00010958,2]
[361023920,1747209039699,-400.0,0.00010958,2]
[361023922,1747209039708,-400.0,0.00010958,2]
[361023924,1747209039717,-735.21,0.00010958,2]
[361023926,1747209039727,-400.0,0.00010958,2]
[361023928,1747209039737,-347.89900083,0.00010958,2]
[361023930,1747209039746,-2396.6,0.00010958,2]
[361023932,1747209039755,-400.0,0.00010958,2]
[361023934,1747209039764,-400.0,0.00010958,2]
[361023936,1747209039774,-400.0,0.00010958,2]
[361023938,1747209039783,-488.25,0.00010958,2]
[361023940,1747209039793,-400.0,0.00010958,2]
[361023942,1747209039803,-686.74,0.00010958,2]
[361023944,1747209039813,-400.0,0.00010958,2]
[361023946,1747209039823,-640.52245451,0.00010958,2]
[361023949,1747209039841,-23.40754549,0.00010958,2]
[361023951,1747209039851,-400.0,0.00010958,2]
[361023953,1747209039860,-16.04178581,0.00010958,2]
[361023957,1747209039892,-383.95821419,0.00010958,2]
[361023959,1747209039902,-147.67862255,0.00010958,2]
[361023965,1747209039934,-252.32137745,0.00010958,2]
[361023967,1747209039944,-400.0,0.00010958,2]
[361023969,1747209039953,-400.0,0.00010958,2]
[361023971,1747209039963,-420.34928314,0.00010958,2]
[361024030,1747209040636,-344.70071686,0.00010958,2]
[361024032,1747209040646,-837.82,0.00010958,2]
[361024034,1747209040655,-400.0,0.00010958,2]
[361024036,1747209040665,-846.38,0.00010958,2]
[361024038,1747209040674,-400.0,0.00010958,2]
[361024040,1747209040685,-400.0,0.00010958,2]
[361024042,1747209040695,-713.16,0.00010958,2]
[361024044,1747209040704,-544.35,0.00010958,2]
[361024046,1747209040714,-20.17751998,0.00010958,2]
[361024049,1747209040725,-1053.31248002,0.00010958,2]
[361024051,1747209040735,-400.0,0.00010958,2]
[361024053,1747209040744,-452.73,0.00010958,2]
[361024054,1747209040753,-400.0,0.00010958,2]
[361024056,1747209040763,-400.0,0.00010958,2]
[361024058,1747209040772,-400.0,0.00010958,2]
[361024060,1747209040782,-610.73,0.00010958,2]
[361024063,1747209040791,-400.0,0.00010958,2]
[361024065,1747209040800,-400.0,0.00010958,2]
[361024067,1747209040810,-1807.34,0.00010958,2]
[361024069,1747209040820,-1075.48,0.00010958,2]
[361024070,1747209040829,-400.0,0.00010958,2]
[361024072,1747209040839,-128.54627077,0.00010958,2]
[361024075,1747209040851,-313.74372923,0.00010958,2]
[361024077,1747209040860,-349.19127077,0.00010958,2]
[361024079,1747209040873,-50.80872923,0.00010958,2]
[361024081,1747209040882,-344.78152337,0.00010958,2]
[361024083,1747209040894,-3.85835127,0.00010958,2]
[361024085,1747209040903,-504.1,0.00010958,2]
[361024087,1747209040912,-400.0,0.00010958,2]
[361024089,1747209040922,-25.40628817,0.00010958,2]
[361024091,1747209040935,-536.34371183,0.00010958,2]
[361024093,1747209040945,-546.56,0.00010958,2]
[361024095,1747209040954,-690.43,0.00010958,2]
[361024097,1747209040963,-400.0,0.00010958,2]
[361024099,1747209040972,-400.0,0.00010958,2]
[361024101,1747209040981,-400.0,0.00010958,2]
[361024103,1747209040991,-400.0,0.00010958,2]
[361024105,1747209041000,-400.0,0.00010958,2]
[361024108,1747209041010,-400.0,0.00010958,2]
[361024111,1747209041019,-416.24,0.00010958,2]
[361024114,1747209041028,-381.54628813,0.00010958,2]
[361024116,1747209041040,-18.45371187,0.00010958,2]
[361024118,1747209041049,-400.0,0.00010958,2]
[361024120,1747209041059,-402.6,0.00010958,2]
[361024122,1747209041068,-400.0,0.00010958,2]
[361024124,1747209041078,-400.0,0.00010958,2]
[361024126,1747209041087,-400.0,0.00010958,2]
[361024128,1747209041097,-400.0,0.00010958,2]
[361024130,1747209041106,-400.0,0.00010958,2]
[361024132,1747209041115,-274.24345743,0.00010958,2]
[361024135,1747209041126,-657.96086,0.00010958,2]
[361024140,1747209041167,-473.44568257,0.00010958,2]
[361024142,1747209041177,-400.0,0.00010958,2]
[361024144,1747209041188,-1113.76,0.00010958,2]
[361024146,1747209041197,-400.0,0.00010958,2]
[361024148,1747209041207,-400.0,0.00010958,2]
[361024150,1747209041216,-468.31,0.00010958,2]
[361024152,1747209041225,-665.02,0.00010958,2]
[361024154,1747209041234,-1001.39,0.00010958,2]
[361024156,1747209041243,-777.85,0.00010958,2]
[361024158,1747209041252,-400.0,0.00010958,2]
[361024160,1747209041262,-400.0,0.00010958,2]
[361024162,1747209041271,-400.0,0.00010958,2]
[361024164,1747209041281,-2209.78,0.00010958,2]
[361024166,1747209041290,-542.27,0.00010958,2]
[361024168,1747209041299,-346.00143438,0.00010958,2]
[361024170,1747209041308,-223.22751141,0.00010958,2]
[361024172,1747209041318,-400.0,0.00010958,2]
[361024174,1747209041327,-1048.34,0.00010958,2]
[361024176,1747209041342,-400.0,0.00010958,2]
[361024178,1747209041352,-1451.38,0.00010958,2]
[361024180,1747209041361,-400.0,0.00010958,2]
[361024182,1747209041370,-450.29573472,0.00010958,2]
[361024184,1747209041381,-619.23,0.00010958,2]
[361024186,1747209041390,-400.0,0.00010958,2]
[361024188,1747209041399,-403.69896993,0.00010958,2]
[361024190,1747209041408,-2336.68,0.00010958,2]
[361024192,1747209041418,-845.06,0.00010958,2]
[361024194,1747209041428,-400.0,0.00010958,2]
[361024196,1747209041439,-1320.89,0.00010958,2]
[361024198,1747209041449,-400.0,0.00010958,2]
[361024200,1747209041458,-666.66,0.00010958,2]
[361024202,1747209041467,-400.0,0.00010958,2]
[361024204,1747209041476,-400.0,0.00010958,2]
[361024206,1747209041486,-663.81,0.00010958,2]
[361024207,1747209041495,-400.0,0.00010958,2]
[361024209,1747209041505,-541.3,0.00010958,2]
[361024236,1747209041752,-400.0,0.00010958,2]
[361024238,1747209041762,-400.0,0.00010958,2]
[361024241,1747209041772,-400.0,0.00010958,2]
[361024243,1747209041782,-400.0,0.00010958,2]
[361024245,1747209041791,-400.0,0.00010958,2]
[361024247,1747209041801,-400.0,0.00010958,2]
[361024249,1747209041810,-1134.08,0.00010958,2]
[361024251,1747209041819,-445.33,0.00010958,2]
[361024253,1747209041828,-1257.84,0.00010958,2]
[361024254,1747209041837,-575.36,0.00010958,2]
[361024257,1747209041847,-400.0,0.00010958,2]
[361024258,1747209041856,-400.0,0.00010958,2]
[361024260,1747209041865,-1000.0,0.00010958,2]
[361024262,1747209041874,-1007.26,0.00010958,2]
[361024264,1747209041883,-400.0,0.00010958,2]
[361024266,1747209041893,-659.39,0.00010958,2]
[361024268,1747209041902,-400.0,0.00010958,2]
[361024270,1747209041911,-1204.75,0.00010958,2]
[361024272,1747209041922,-400.0,0.00010958,2]
[361024274,1747209041932,-400.98,0.00010958,2]
[361024276,1747209041942,-906.35,0.00010958,2]
[361024278,1747209041951,-466.88,0.00010958,2]
[361024280,1747209041960,-1524.33,0.00010958,2]
[361024282,1747209041971,-774.55,0.00010958,2]
[361024284,1747209041980,-400.0,0.00010958,2]
[361024286,1747209041989,-873.16,0.00010958,2]
[361024288,1747209041999,-523.37,0.00010958,2]
[361024290,1747209042008,-4342.01,0.00010958,2]
[361024292,1747209042017,-352.56,0.00010958,2]
[361024294,1747209042027,-5472.55,0.00010958,2]
[361024296,1747209042036,-3290.66,0.00010958,2]
[361024298,1747209042045,-400.0,0.00010958,2]
[361024300,1747209042055,-400.0,0.00010958,2]
[361024302,1747209042065,-620.73,0.00010958,2]
[361024304,1747209042074,-400.0,0.00010958,2]
[361024306,1747209042084,-250.24469464,0.00010958,2]
[361024308,1747209042093,-1318.63,0.00010958,2]
[361024310,1747209042103,-400.0,0.00010958,2]
[361024312,1747209042112,-400.0,0.00010958,2]
[361024314,1747209042121,-544.74940313,0.00010958,2]
[361024316,1747209042130,-400.0,0.00010958,2]
[361024318,1747209042140,-794.74,0.00010958,2]
[361024320,1747209042150,-400.0,0.00010958,2]
[361024322,1747209042159,-400.0,0.00010958,2]
[361024324,1747209042168,-496.52,0.00010958,2]
[361024326,1747209042178,-558.78,0.00010958,2]
[361024328,1747209042188,-400.0,0.00010958,2]
[361024330,1747209042198,-811.62,0.00010958,2]
[361024332,1747209042207,-400.0,0.00010958,2]
[361024334,1747209042216,-903.19,0.00010958,2]
[361024336,1747209042225,-824.62,0.00010958,2]
[361024338,1747209042235,-400.0,0.00010958,2]
[361024340,1747209042245,-400.0,0.00010958,2]
[361024342,1747209042254,-400.0,0.00010958,2]
[361024344,1747209042263,-1186.62,0.00010958,2]
[361024346,1747209042273,-525.47,0.00010958,2]
[361024348,1747209042282,-400.0,0.00010958,2]
[361024350,1747209042291,-403.80463425,0.00010958,2]
[361024352,1747209042300,-992.09,0.00010958,2]
[361024354,1747209042309,-507.48,0.00010958,2]
[361024356,1747209042319,-400.0,0.00010958,2]
[361024358,1747209042329,-400.0,0.00010958,2]
[361024360,1747209042343,-1186.0,0.00010958,2]
[361024362,1747209042352,-871.03,0.00010958,2]
[361024364,1747209042361,-400.0,0.00010958,2]
[361024366,1747209042371,-8303.1,0.00010958,2]
[361024369,1747209042391,-2394.97,0.00010958,2]
[361024371,1747209042402,-635.51,0.00010958,2]
[361024373,1747209042413,-400.0,0.00010958,2]
[361024375,1747209042424,-635.86,0.00010958,2]
[361024377,1747209042435,-483.25,0.00010958,2]
[361024379,1747209042444,-762.97,0.00010958,2]
[361024381,1747209042455,-400.0,0.00010958,2]
[361024383,1747209042464,-400.0,0.00010958,2]
[361024385,1747209042474,-400.0,0.00010958,2]
[361024387,1747209042484,-400.0,0.00010958,2]
[361024389,1747209042494,-3884.54,0.00010958,2]
[361024391,1747209042504,-400.0,0.00010958,2]
[361024393,1747209042514,-539.78,0.00010958,2]
[361024396,1747209042524,-400.0,0.00010958,2]
[361024398,1747209042533,-566.07,0.00010958,2]
[361024400,1747209042543,-400.0,0.00010958,2]
[361024402,1747209042552,-400.0,0.00010958,2]
[361024404,1747209042562,-400.0,0.00010958,2]
[361024406,1747209042572,-400.0,0.00010958,2]
[361024408,1747209042581,-400.0,0.00010958,2]
[361024410,1747209042591,-9332.17,0.00010958,2]
[361024412,1747209042600,-400.0,0.00010958,2]
[361024414,1747209042609,-400.0,0.00010958,2]
[361024416,1747209042619,-377.42530061,0.00010958,2]
[361024418,1747209042629,-400.0,0.00010958,2]
[361024420,1747209042638,-521.21,0.00010958,2]
[361024422,1747209042648,-1804.54,0.00010958,2]
[361024424,1747209042658,-1359.75,0.00010958,2]
[361024426,1747209042668,-400.0,0.00010958,2]
[361024428,1747209042677,-400.0,0.00010958,2]
[361024430,1747209042689,-476.91745344,0.00010958,2]
[361024432,1747209042698,-3867.76,0.00010958,2]
[361024434,1747209042708,-1228.35,0.00010958,2]
[361024436,1747209042718,-454.4,0.00010958,2]
[361024438,1747209042727,-400.0,0.00010958,2]
[361024440,1747209042737,-470.84,0.00010958,2]
[361024442,1747209042747,-243.14266406,0.00010958,2]
[361024444,1747209042757,-451.23,0.00010958,2]
[361024446,1747209042767,-3381.56,0.00010958,2]
[361024448,1747209042777,-3045.01,0.00010958,2]
[361024450,1747209042787,-1518.64,0.00010958,2]
[361024452,1747209042797,-400.0,0.00010958,2]
[361024454,1747209042807,-400.0,0.00010958,2]
[361024456,1747209042816,-7510.59,0.00010958,2]
[361024458,1747209042826,-983.94,0.00010958,2]
[361024460,1747209042835,-480.02,0.00010958,2]
[361024462,1747209042845,-400.0,0.00010958,2]
[361024464,1747209042854,-616.03,0.00010958,2]
[361024466,1747209042864,-585.46,0.00010958,2]
[361024467,1747209042875,-400.0,0.00010958,2]
[361024468,1747209042884,-400.0,0.00010958,2]
[361024469,1747209042894,-1174.5,0.00010958,2]
[361024470,1747209042906,-1727.32,0.00010958,2]
[361024471,1747209042915,-824.11,0.00010958,2]
[361024472,1747209042925,-400.0,0.00010958,2]
[361024473,1747209042936,-400.0,0.00010958,2]
[361024474,1747209042945,-400.0,0.00010958,2]
[361024475,1747209042955,-400.0,0.00010958,2]
[361024476,1747209042965,-901.12,0.00010958,2]
[361024478,1747209042974,-400.0,0.00010958,2]
[361024480,1747209042983,-400.0,0.00010958,2]
[361024481,1747209042993,-400.0,0.00010958,2]
[361024482,1747209043003,-465.08,0.00010958,2]
[361024483,1747209043012,-975.74,0.00010958,2]
[361024484,1747209043022,-1658.78,0.00010958,2]
[361024485,1747209043031,-700.75,0.00010958,2]
[361024486,1747209043041,-400.0,0.00010958,2]
[361024488,1747209043051,-803.12,0.00010958,2]
[361024490,1747209043061,-400.0,0.00010958,2]
[361024491,1747209043071,-400.0,0.00010958,2]
[361024492,1747209043080,-2190.3,0.00010958,2]
[361024493,1747209043090,-1386.9,0.00010958,2]
[361024494,1747209043100,-400.0,0.00010958,2]
[361024495,1747209043109,-485.56,0.00010958,2]
[361024496,1747209043119,-400.0,0.00010958,2]
[361024497,1747209043129,-400.0,0.00010958,2]
[361024498,1747209043138,-171.80953621,0.00010958,2]
[361024499,1747209043148,-229.73466094,0.00010958,2]
[361024500,1747209043158,-400.0,0.00010958,2]
[361024501,1747209043169,-400.0,0.00010958,2]
[361024503,1747209043178,-1242.02,0.00010958,2]
[361024504,1747209043188,-790.06,0.00010958,2]
[361024505,1747209043198,-400.0,0.00010958,2]
[361024506,1747209043207,-400.0,0.00010958,2]
[361024507,1747209043217,-400.0,0.00010958,2]
[361024508,1747209043226,-1050.16,0.00010958,2]
[361024509,1747209043236,-21204.56,0.00010958,2]
[361024510,1747209043245,-548.77409781,0.00010958,2]
[361024512,1747209043255,-400.0,0.00010958,2]
[361024513,1747209043264,-1025.65,0.00010958,2]
[361024514,1747209043273,-400.0,0.00010958,2]
[361024515,1747209043283,-199.6287938,0.00010958,2]
[361024516,1747209043292,-400.0,0.00010958,2]
[361024517,1747209043302,-400.0,0.00010958,2]
[361024518,1747209043313,-400.0,0.00010958,2]
[361024519,1747209043322,-462.47,0.00010958,2]
[361024520,1747209043333,-903.36,0.00010958,2]
[361024521,1747209043346,-400.0,0.00010958,2]
[361024522,1747209043355,-489.88,0.00010958,2]
[361024523,1747209043365,-400.0,0.00010958,2]
[361024524,1747209043374,-433.44,0.00010958,2]
[361024525,1747209043384,-400.0,0.00010958,2]
[361024526,1747209043394,-1903.72,0.00010958,2]
[361024527,1747209043403,-460.59,0.00010958,2]
[361024528,1747209043412,-400.0,0.00010958,2]
[361024529,1747209043422,-400.0,0.00010958,2]
[361024530,1747209043431,-1352.46,0.00010958,2]
[361024531,1747209043440,-2297.07,0.00010958,2]
[361024533,1747209043449,-400.0,0.00010958,2]
[361024535,1747209043459,-5802.65,0.00010958,2]
[361024537,1747209043469,-400.0,0.00010958,2]
[361024539,1747209043478,-1010.68,0.00010958,2]
[361024541,1747209043488,-400.0,0.00010958,2]
[361024543,1747209043498,-400.0,0.00010958,2]
[361024545,1747209043507,-713.5,0.00010958,2]
[361024547,1747209043516,-400.0,0.00010958,2]
[361024549,1747209043526,-1266.9,0.00010958,2]
[361024552,1747209043535,-434.56,0.00010958,2]
[361024554,1747209043545,-1158.53,0.00010958,2]
[361024556,1747209043555,-484.69,0.00010958,2]
[361024558,1747209043564,-1095.0,0.00010958,2]
[361024560,1747209043573,-1932.75,0.00010958,2]
[361024562,1747209043581,-435.72,0.00010958,2]
[361024564,1747209043590,-400.0,0.00010958,2]
[361024566,1747209043598,-400.0,0.00010958,2]
[361024568,1747209043606,-400.0,0.00010958,2]
[361024570,1747209043615,-1315.66,0.00010958,2]
[361024572,1747209043625,-413.7814317,0.00010958,2]
[361024574,1747209043635,-400.0,0.00010958,2]
[361024576,1747209043644,-457.59,0.00010958,2]
[361024578,1747209043654,-400.0,0.00010958,2]
[361024580,1747209043663,-400.0,0.00010958,2]
[361024582,1747209043674,-400.0,0.00010958,2]
[361024584,1747209043683,-496.1,0.00010958,2]
[361024586,1747209043692,-4200.08,0.00010958,2]
[361024588,1747209043702,-814.19,0.00010958,2]
[361024590,1747209043713,-400.0,0.00010958,2]
[361024592,1747209043722,-5005.62,0.00010958,2]
[361024595,1747209043732,-459.36,0.00010958,2]
[361024597,1747209043742,-615.67,0.00010958,2]
[361024599,1747209043751,-400.0,0.00010958,2]
[361024601,1747209043761,-400.0,0.00010958,2]
[361024603,1747209043771,-402.79,0.00010958,2]
[361024605,1747209043780,-400.0,0.00010958,2]
[361024607,1747209043790,-400.0,0.00010958,2]
[361024609,1747209043799,-1129.39,0.00010958,2]
[361024611,1747209043809,-400.0,0.00010958,2]
[361024613,1747209043820,-400.0,0.00010958,2]
[361024615,1747209043829,-695.95,0.00010958,2]
[361024617,1747209043839,-558.35,0.00010958,2]
[361024619,1747209043848,-900.7,0.00010958,2]
[361024621,1747209043858,-400.0,0.00010958,2]
[361024623,1747209043867,-1206.83,0.00010958,2]
[361024625,1747209043877,-2565.38,0.00010958,2]
[361024627,1747209043887,-400.0,0.00010958,2]
[361024629,1747209043896,-704.13,0.00010958,2]
[361024631,1747209043905,-400.0,0.00010958,2]
[361024633,1747209043915,-905.95,0.00010958,2]
[361024635,1747209043925,-400.0,0.00010958,2]
[361024637,1747209043936,-461.69,0.00010958,2]
[361024639,1747209043945,-400.0,0.00010958,2]
[361024641,1747209043955,-500.0,0.00010958,2]
[361024643,1747209043965,-400.0,0.00010958,2]
[361024645,1747209043974,-500.0,0.00010958,2]
[361024647,1747209043984,-1026.15,0.00010958,2]
[361024649,1747209043994,-289.95675908,0.00010958,2]
[361024651,1747209044004,-926.7,0.00010958,2]
[361024653,1747209044013,-720.88,0.00010958,2]
[361024655,1747209044022,-400.0,0.00010958,2]
[361024657,1747209044031,-828.79,0.00010958,2]
[361024659,1747209044041,-696.91,0.00010958,2]
[361024661,1747209044050,-2110.67,0.00010958,2]
[361024663,1747209044060,-481.38212134,0.00010958,2]
[361024665,1747209044070,-400.0,0.00010958,2]
[361024667,1747209044080,-400.0,0.00010958,2]
[361024669,1747209044090,-540.58,0.00010958,2]
[361024671,1747209044100,-427.82,0.00010958,2]
[361024673,1747209044110,-3080.676498,0.00010958,2]
[361024675,1747209044119,-400.0,0.00010958,2]
[361024677,1747209044129,-1784.16,0.00010958,2]
[361024679,1747209044139,-400.0,0.00010958,2]
[361024681,1747209044148,-400.0,0.00010958,2]
[361024683,1747209044158,-400.0,0.00010958,2]
[361024685,1747209044167,-1232.7,0.00010958,2]
[361024687,1747209044177,-1246.63,0.00010958,2]
[361024689,1747209044188,-400.0,0.00010958,2]
[361024691,1747209044198,-400.0,0.00010958,2]
[361024693,1747209044207,-1031.46,0.00010958,2]
[361024695,1747209044216,-400.0,0.00010958,2]
[361024697,1747209044226,-400.0,0.00010958,2]
[361024699,1747209044236,-527.8402685,0.00010958,2]
[361024700,1747209044246,-400.0,0.00010958,2]
[361024701,1747209044255,-614.08,0.00010958,2]
[361024702,1747209044265,-415.13,0.00010958,2]
[361024703,1747209044274,-915.16,0.00010958,2]
[361024704,1747209044284,-400.0,0.00010958,2]
[361024705,1747209044294,-8117.6,0.00010958,2]
[361024706,1747209044303,-400.0,0.00010958,2]
[361024707,1747209044313,-400.0,0.00010958,2]
[361024708,1747209044323,-400.0,0.00010958,2]
[361024709,1747209044336,-1273.28,0.00010958,2]
[361024710,1747209044346,-400.0,0.00010958,2]
[361024711,1747209044355,-400.0,0.00010958,2]
[361024712,1747209044365,-400.0,0.00010958,2]
[361024713,1747209044375,-400.0,0.00010958,2]
[361024714,1747209044386,-400.0,0.00010958,2]
[361024715,1747209044395,-400.0,0.00010958,2]
[361024716,1747209044409,-2424.58,0.00010958,2]
[361024717,1747209044419,-447.54,0.00010958,2]
[361024718,1747209044428,-400.0,0.00010958,2]
[361024719,1747209044438,-400.0,0.00010958,2]
[361024720,1747209044447,-400.0,0.00010958,2]
[361024721,1747209044458,-400.0,0.00010958,2]
[361024722,1747209044467,-400.0,0.00010958,2]
[361024723,1747209044477,-8091.9,0.00010958,2]
[361024724,1747209044487,-723.09,0.00010958,2]
[361024725,1747209044498,-422.1,0.00010958,2]
[361024726,1747209044508,-1958.39,0.00010958,2]
[361024727,1747209044518,-400.0,0.00010958,2]
[361024728,1747209044527,-2526.26,0.00010958,2]
[361024729,1747209044537,-803.6,0.00010958,2]
[361024730,1747209044547,-2914.11,0.00010958,2]
[361024731,1747209044557,-599.26,0.00010958,2]
[361024732,1747209044566,-905.05,0.00010958,2]
[361024733,1747209044576,-1722.0,0.00010958,2]
[361024734,1747209044586,-154.22896825,0.00010958,2]
[361024735,1747209044595,-400.0,0.00010958,2]
[361024736,1747209044605,-1000.0,0.00010958,2]
[361024737,1747209044615,-805.31,0.00010958,2]
[361024738,1747209044624,-400.0,0.00010958,2]
[361024739,1747209044634,-400.0,0.00010958,2]
[361024740,1747209044643,-400.0,0.00010958,2]
[361024741,1747209044653,-981.33,0.00010958,2]
[361024742,1747209044662,-400.0,0.00010958,2]
[361024743,1747209044672,-500.0,0.00010959,2]
[361024744,1747209044681,-500.0,0.00010959,2]
[361024745,1747209044691,-500.0,0.00010959,2]
[361024746,1747209044700,-500.0,0.00010959,2]
[361024747,1747209044710,-500.0,0.00010959,2]
[361024748,1747209044724,-500.0,0.00010959,2]
[361024749,1747209044734,-500.0,0.00010959,2]
[361024750,1747209044744,-500.0,0.00010959,2]
[361024751,1747209044754,-180.42544264,0.00010959,2]
[361024752,1747209044764,-500.0,0.00010959,2]
[361024753,1747209044774,-1000.28212881,0.0001097,2]
[361024754,1747209044784,-1000.0,0.0001097,2]
[361024755,1747209044794,-894.11307428,0.0001097,2]
[361024756,1747209044804,-500.0,0.00010973,2]
[361024757,1747209044814,-500.0,0.00010973,2]
[361024758,1747209044824,-500.0,0.00010973,2]
[361024759,1747209044834,-400.0,0.00010999,2]
[361024760,1747209044844,-500.0,0.00010999,2]
[361024761,1747209044854,-500.0,0.00010999,2]
[361024762,1747209044864,-500.0,0.00010999,2]
[361024763,1747209044874,-383564.19018025,0.00011,2]
[361024765,1747209046366,-400.0,0.00010958,2]
[361024766,1747209046376,-2795.17813825,0.00011,2]
[361024767,1747209046391,-1199.4542109,0.00011,2]
[361024768,1747209046402,-2099.36016113,0.00011,2]
[361024769,1747209046415,-812.36250586,0.00011,2]
[361024793,1747209046893,-6508.45894159,0.00011,2]
[361024795,1747209046904,-2423.299997,0.00011,2]
[361024797,1747209046916,-4948.65,0.00011,2]
[361024825,1747209050694,-455447.84175467,0.00011,2]
[361024826,1747209050705,-200.0,0.00011,2]
[361024827,1747209050715,-298.26089446,0.00011052,2]
[361024828,1747209050724,-216.43668365,0.00011052,2]
[361024829,1747209050734,-1000.0,0.00011059,2]
[361024830,1747209050744,-8520.23959108,0.00011099,2]
[361024831,1747209050754,-8520.23959108,0.00011099,2]
[361024832,1747209050764,-4023.91337394,0.00011099,2]
[361024833,1747209050774,-4023.91337391,0.00011099,2]
[361024834,1747209050783,-200.0,0.0001111,2]
[361024835,1747209050793,-931.0,0.00011149,2]
[361024836,1747209050803,-798.0,0.00011149,2]
[361024837,1747209050813,-261.184,0.00011149,2]
[361024838,1747209050822,-452.63,0.00011201,2]
[361024839,1747209050832,-328.25,0.00011201,2]
[361024840,1747209050842,-452.27,0.00011201,2]
[361024841,1747209050851,-162.47,0.00011201,2]
[361024842,1747209050861,-378.41,0.00011201,2]
[361024843,1747209050871,-352.86,0.00011201,2]